{"text_format":"1","workbook":"xlsx","n_sheets":3,"sheets":["Sheet1","Sheet2","Sheet3"],"not_rendered":{"charts":0,"images":0,"macros":1,"external_links":0,"defined_names":0,"comments":0,"pivot_tables":0},"unopened":[],"bounds":{"document_bytes":16777216,"sheet_cells":100000,"rows_first":2000,"rows_last":500,"rows_between":2000,"halvings":0,"cell_chars":16384,"cell_head_chars":4096},"cells_cut":0,"cells_raw":0,"read":"whole","date_system":"1900"}

{"sheet":"Sheet1","index":0,"n_rows":81,"n_cols":36,"rows_kept":81,"cut":false,"hidden":false,"merged":[[6,31,7,31],[6,1,7,9],[6,10,7,22],[6,23,7,24],[6,25,7,29],[6,30,7,30]]}
[]
[]
[null,null,null,null,null,null,null,null,null,null,null,null,null,null,null,null,null,null,null,null,null,null,"REPETITIONS IN PROVERBS"]
[null,null,null,null,null,null,null,null,null,null,null,null,null,null,null,null,null,null,null,null,null,null,"See below for explanation"]
[]
[]
[null,"Proverbs of Solomon, Son of David, king of Israel (1)",null,null,null,null,null,null,null,null,"Proverbs of Solomon (2)",null,null,null,null,null,null,null,null,null,null,null,null,"Sayins of the Wise (3)",null,"Hezekiah Collection (4)",null,null,null,null,"Agur","Lemuel"]
[]
["Verse",1,2,3,4,5,6,7,8,9,10,11,12,13,14,15,16,17,18,19,20,21,22,23,24,25,26,27,28,29,30,31]
[1,null,2.1,null,null,{"$f":"C11+2.9","v":5.0999999999999996},null,{"$f":"C10+5","v":7.1},{"$f":"C12+5.8","v":8.1},null,10.1,11.1,null,null,null,null,null,null,null,19.100000000000001,null,null,null,null,null,null,26.1]
[2,null,2.2000000000000002,3.2,{"$f":"F10-0.9","v":4.1999999999999993},null,null,null,null,null,10.199999999999999,null,null,null,null,{"$f":"N25+2.04","v":15.2},16.2,null,null,null,null,{"$f":"Q11+5","v":21.2},22.2]
[3,null,2.2999999999999998,null,null,null,null,null,null,null,null,null,null,null,null,null,null,null,null,null,null,null,22.3]
[4,null,null,null,null,null,null,null,null,9.4,null,{"$f":"K11+1.2","v":11.399999999999999}]
[5,null,null,null,null,null,null,{"$f":"C25+5.34","v":7.5},null,null,null,null,null,null,null,null,null,null,null,19.5]
[6,null,null,null,null,null,null,null,null,null,null,null,null,null,null,null,null,null,null,null,null,null,null,null,null,null,null,null,{"$f":"T10+9.5","v":28.6},{"$f":"M22+17.47","v":29.6}]
[7,null,null,null,null,5.7,null,null,null,null,null,{"$f":"K37+1.42","v":11.7}]
[8,1.8,null,null,null,null,null,null,null,null,null,null,null,null,null,null,{"$f":"P25+1.64","v":16.8},null,18.8,null,null,null,null,null,null,null,{"$f":"AA10+0.7","v":26.8}]
[9,null,null,null,null,null,null,null,null,null,null,null,null,null,null,null,null,null,null,{"$f":"T14+0.4","v":19.899999999999999},null,21.9]
[10,null,null,null,null,null,6.1,null,null,null,null,null,null,null,null,null,null,null,null,null,null,21.9]
[11,null,null,null,null,null,6.11,null,{"$f":"D24+4.96","v":8.11},{"$f":"D11+5.91","v":9.11},null,null,12.11,null,null,null,null,null,null,null,null,{"$f":"T34+1.86","v":21.11}]
[12,null,null,null,null,null,null,null,null,null,null,null,null,null,14.12,null,null,null,null,null,null,null,null,null,null,null,26.12,{"$f":"W12+4.82","v":27.12}]
[13,null,null,null,null,null,null,null,null,null,null,null,12.13,null,null,15.13,null,null,null,null,null,null,22.13,null,null,null,{"$f":"W22+4","v":26.13},{"$f":"U25+6.97","v":27.13},null,{"$f":"W11+6.93","v":29.13}]
[14,null,null,null,null,null,null,null,null,null,null,11.14,null,13.14,null,null,null,null,null,null,null,null,null,null,{"$f":"X27+0.96","v":24.14},{"$f":"V18+3.24","v":25.14}]
[15,null,null,3.15,null,null,null,null,null,null,null,null,null,null,null,null,null,null,null,null,null,null,null,null,null,null,{"$f":"T33+6.91","v":26.15}]
[16,null,2.16,null,null,null,null,null,null,{"$f":"J13-0.24","v":9.16},null,null,null,{"$f":"M32+0.93","v":13.16},null,15.16,null,null,null,null,20.16]
[17,null,{"$f":"G33-4.08","v":2.16}]
[18,null,null,null,null,null,null,null,null,null,null,null,null,null,null,null,null,null,null,null,null,null,null,23.18]
[19,null,null,null,null,null,null,null,null,null,null,null,null,null,null,null,null,null,null,null,null,{"$f":"V19-0.71","v":21.189999999999998},null,null,null,null,null,null,{"$f":"M20+16.08","v":28.189999999999998}]
[20,null,null,null,null,null,{"$f":"B17+4.4","v":6.2},null,null,null,null,null,null,null,null,{"$f":"K10+5.1","v":15.2},null,null,null,null,null,null,null,null,null,null,null,null,null,{"$f":"AA21+3.08","v":29.200000000000003}]
[21]
[22,null,null,null,null,null,null,null,null,null,null,null,null,null,null,{"$f":"L23+4.08","v":15.22},null,{"$f":"P22+2.09","v":17.22},{"$f":"I44+9.87","v":18.22},null,null,null,null,null,null,null,{"$f":"S17+7.42","v":26.22}]
[23,null,null,null,null,null,null,null,null,null,null,null,12.23,null,null,null,null,null,null,null,{"$f":"L10+9.13","v":20.23}]
[24,null,null,null,null,null,{"$f":"H14-1.26","v":6.24},{"$f":"F16+1.54","v":7.24},null,null,null,null,null,null,null,null,null,null,null,19.239999999999998,null,null,null,null,null,{"$f":"V19+3.34","v":25.24}]
[25,1.25,null,null,null,null,null,null,null,null,null,null,null,null,null,null,null,{"$f":"O21+2.13","v":16.25},null,19.25]
[26]
[27,null,null,null,null,null,null,null,null,null,null,null,null,null,{"$f":"N23+1.13","v":14.27}]
[28,null,null,null,null,null,null,null,null,null,10.28]
[29]
[30,{"$f":"B34+0.05","v":1.3}]
[31]
[32]
[33,null,null,null,null,null,null,null,null,null,null,null,null,null,null,null,null,null,null,null,null,null,null,null,{"$f":"G19+18.23","v":24.33}]
[34,null,null,null,null,null,null,null,null,null,null,null,null,null,null,null,null,null,null,null,null,null,null,null,{"$f":"G20+18.23","v":24.34}]
[35,null,null,null,null,null,null,null,8.35]
[36]
[]
[null,null,null,null,null,null,null,null,null,null,null,null,null,null,null,null,null,null,null,null,null,null,null,null,null,null,null,null,null,null,null,null,null,null,null,"`"]
[null,null,null,null,null,"Each section can be individually viewed or all the sections together (click \"Spelling variations\"  "]
[null,null,null,null,null,"then \"One dissimilar\".... etc), click on \"Reset\" to remove the arrows. In order to view how each "]
[null,null,null,null,null,"section is interlinked click (for example) \"Links (1) and \"Reset\" to remove the arrows. Ignore the"]
[null,null,null,null,null," directionality of the arrows as they do not indicate either Precedence or Dependence only Similarity"]
[null,null,null,null,null,"(or measure of Dissimilarity)between verses. Data Collected from: Daniel C. Snell,Twice-told Proverbs"]
[null,null,null,null,null,"and the Composition of the Book of Proverbs, (Winona Lake, Ind. : Eisenbrauns, 1993),35-41"]
[]
[]
[]
[null,"Whole verses with spelling variations (6 sets)",null,null,null,null,null,null,null,null,null,"Whole verses with one disimillar word (6 sets)",null,null,null,null,null,null,null,null,"Whole verses with two disimilar words (11 sets)"]
[]
[null,"9:4=9:16",null,null,null,null,null,null,null,null,null,"2:1=7:1",null,null,null,null,null,null,null,null,"1:8=6:20"]
[null,"14:12=16:25",null,null,null,null,null,null,null,null,null,"2:16=7:5",null,null,null,null,null,null,null,null,"1:25=1:30"]
[null,"18:8=26:22",null,null,null,null,null,null,null,null,null,"5:7=7:24",null,null,null,null,null,null,null,null,"2:2=5:1"]
[null,"20:16=27:13",null,null,null,null,null,null,null,null,null,"6:10-11=24:33-34",null,null,null,null,null,null,null,null,"3:2=9:11"]
[null,"21:9=25:14",null,null,null,null,null,null,null,null,null,"19:5=19:9",null,null,null,null,null,null,null,null,"4:20=5:1"]
[null,"22:3=27:12",null,null,null,null,null,null,null,null,null,"23:18=24:14b",null,null,null,null,null,null,null,null,"10:1=15:20"]
[null,null,null,null,null,null,null,null,null,null,null,null,null,null,null,null,null,null,null,null,"11:1=20:23"]
[null,null,null,null,null,null,null,null,null,null,null,null,null,null,null,null,null,null,null,null,"12:11=28:19"]
[null,null,null,null,null,null,null,null,null,null,null,null,null,null,null,null,null,null,null,null,"13:14=14:27"]
[null,null,null,null,null,null,null,null,null,null,null,null,null,null,null,null,null,null,null,null,"19:1=28:6"]
[null,null,null,null,null,null,null,null,null,null,null,null,null,null,null,null,null,null,null,null,"19:24=26:15"]
[null,"Whole verses three disimilar words (9 sets)",null,null,null,null,null,null,null,null,null,"Whole verses four or more disimilar words  (10 sets)"]
[]
[null,"3:15=8:11",null,null,null,null,null,null,null,null,null,"2:3=8:1"]
[null,"6:24=7:5",null,null,null,null,null,null,null,null,null,"2:16=6:24"]
[null,"8:35=18:22",null,null,null,null,null,null,null,null,null,"11:14=15:22"]
[null,"10:2=11:4",null,null,null,null,null,null,null,null,null,"12:13=29:6"]
[null,"10:28=11:7",null,null,null,null,null,null,null,null,null,"12:23=13:16=15:2"]
[null,"15:13=17:22",null,null,null,null,null,null,null,null,null,"15:16=16:8"]
[null,"16:2=21:2",null,null,null,null,null,null,null,null,null,"19:25=21:11"]
[null,"22:13=26:13",null,null,null,null,null,null,null,null,null,"21:9=21:19=25:24"]
[null,"26:12=29:20",null,null,null,null,null,null,null,null,null,"22:2=29:13"]
[null,null,null,null,null,null,null,null,null,null,null,"26:1=26:8"]

{"sheet":"Sheet2","index":1,"n_rows":0,"n_cols":0,"rows_kept":0,"cut":false,"hidden":false,"merged":[]}

{"sheet":"Sheet3","index":2,"n_rows":0,"n_cols":0,"rows_kept":0,"cut":false,"hidden":false,"merged":[]}